[Event "Cracovia Festival-A 2023"]
[Site "Krakow"]
[Date "2024.01.02"]
[Round "6.43"]
[White "Hryharovich, Aliaksei"]
[Black "Zalega, Maciej"]
[Result "1-0"]
[ECO "A81"]
[WhiteElo "2195"]
[BlackElo "2113"]
[Annotator "RC"]
[PlyCount "61"]
[EventDate "2023.12.24"]
[EventType "swiss"]
[EventCountry "POL"]
[SourceTitle "playchess.com"]
[Source "ChessBase"]
[SourceQuality "1"]
[TimeControl "40/5400+30:1800+30"]

1. d4 {[%emt 0:00:02]} f5 {[%emt 0:02:55]} 2. g3 {[%emt 0:00:28]} Nf6 {[%emt 0:01:20]} 3. Bg2 {[%emt 0:00:16]} g6 {[%emt 0:00:06]} 4. Nd2 {[%emt 0:00:14]} Bg7 {[%emt 0:00:06]} 5. e4 {[%emt 0:00:14]} fxe4 {[%emt 0:00:05]} 6. Nxe4 {[%emt 0:00:08]} Nxe4 {[%emt 0:00:04]} 7. Bxe4 {[%emt 0:00:09]} d5 {[%emt 0:00:30]} 8. Bg2 {[%emt 0:00:42]} O-O {[%emt 0:03:27]} 9. Nf3 {[%emt 0:12:19]} Bf5 {[%emt 0:30:10]} 10. O-O {[%emt 0:00:49]} Nc6 {[%emt 0:02:31]} 11. c3 {[%emt 0:01:19]} Qd7 {[%emt 0:00:06]} 12. Bf4 {[%emt 0:07:33]} h6 {[%emt 0:30:37]} 13. Ne5 {[%emt 0:14:16]} Nxe5 {[%emt 0:00:23]} 14. Bxe5 {[%emt 0:00:08]} c6 {[%emt 0:00:32]} 15. Bxg7 {[%emt 0:01:39]} Kxg7 {[%emt 0:00:08]} 16. Re1 {[%emt 0:00:34]} Rf7 {[%emt 0:01:21]} 17. Re5 {[%emt 0:02:49]} Raf8 {[%emt 0:01:47]} 18. f4 {[%emt 0:05:58]} h5 {[%emt 0:00:20]} 19. Qe2 {[%emt 0:00:39]} Rh8 {[%emt 0:02:05]} 20. Re1 {[%emt 0:07:10]} Kf8 {[%emt 0:02:01]} 21. c4 {[%emt 0:18:44]} h4 {[%emt 0:05:40]} 22. cxd5 {[%emt 0:01:00]} hxg3 {[%emt 0:00:05]} 23. hxg3 {[%emt 0:00:14]} Bh3 {[%emt 0:07:06]} 24. Bf3 {[%emt 0:05:44]} Rfh7 {[%emt 0:00:07]} 25. Rg5 {[%emt 0:01:18]} Rh6 {[%emt 0:05:43]} 26. Qe5 {[%emt 0:01:16]} Bf5 {[%emt 0:00:46]} 27. g4 {[%emt 0:04:20]} Bxg4 {[%emt 0:02:54]} 28. Rxg4 {[%emt 0:01:53]} Rh1+ {[%emt 0:00:07]} 29. Bxh1 {[%emt 0:00:12]} Qxg4+ {[%emt 0:00:03]} 30. Bg2 {[%emt 0:00:08]} Rh7 {[%emt 0:00:18]} 31. d6 {[%emt 0:01:13]} 1-0

[Event "Cracovia Festival-A 2023"]
[Site "Krakow"]
[Date "2024.01.02"]
[Round "6.44"]
[White "Pniaczek, Marek"]
[Black "Leskiewicz, Ignacy"]
[Result "0-1"]
[ECO "B07"]
[WhiteElo "2135"]
[BlackElo "2177"]
[Annotator "RC"]
[PlyCount "78"]
[EventDate "2023.12.24"]
[EventType "swiss"]
[EventCountry "POL"]
[SourceTitle "playchess.com"]
[Source "ChessBase"]
[SourceQuality "1"]
[TimeControl "40/5400+30:1800+30"]

1. e4 {[%emt 0:00:19]} d6 {[%emt 0:13:08]} 2. d4 {[%emt 0:00:10]} Nf6 {[%emt 0:00:07]} 3. Nc3 {[%emt 0:01:43]} e5 {[%emt 0:00:09]} 4. dxe5 {[%emt 0:03:32]} dxe5 {[%emt 0:00:08]} 5. Qxd8+ {[%emt 0:00:06]} Kxd8 {[%emt 0:00:07]} 6. Bc4 {[%emt 0:00:23]} Ke8 {[%emt 0:01:57]} 7. Nf3 {[%emt 0:04:19]} Bd6 {[%emt 0:00:10]} 8. h3 {[%emt 0:17:44]} c6 {[%emt 0:01:44]} 9. Be3 {[%emt 0:01:02]} Nbd7 {[%emt 0:10:39]} 10. O-O-O {[%emt 0:13:03]} Bc7 {[%emt 0:00:05]} 11. Rhe1 {[%emt 0:05:36]} b5 {[%emt 0:01:37]} 12. Bd3 {[%emt 0:00:48]} Ke7 {[%emt 0:05:32]} 13. g4 {[%emt 0:04:40]} a6 {[%emt 0:06:47]} 14. Ne2 {[%emt 0:00:37]} g6 {[%emt 0:09:21]} 15. Ng3 {[%emt 0:01:11]} Ne8 {[%emt 0:06:53]} 16. Nd2 {[%emt 0:03:17]} Bb6 {[%emt 0:06:12]} 17. Bxb6 {[%emt 0:11:07]} Nxb6 {[%emt 0:00:01]} 18. Ngf1 {[%emt 0:05:10]} Nc7 {[%emt 0:02:35]} 19. Ne3 {[%emt 0:02:22]} Ne6 {[%emt 0:01:45]} 20. Bf1 {[%emt 0:00:37]} Nf4 {[%emt 0:11:16]} 21. Nb3 {[%emt 0:00:47]} a5 {[%emt 0:01:02]} 22. Nc5 {[%emt 0:00:56]} h5 {[%emt 0:04:32]} 23. f3 {[%emt 0:00:24]} hxg4 {[%emt 0:02:35]} 24. hxg4 {[%emt 0:00:03]} Rh2 {[%emt 0:01:58]} 25. Nd3 {[%emt 0:01:52]} Nxd3+ {[%emt 0:02:18]} 26. Rxd3 {[%emt 0:00:50]} Be6 {[%emt 0:01:32]} 27. Rc3 {[%emt 0:01:50]} Rc8 {[%emt 0:01:09]} 28. Rd1 {[%emt 0:01:10]} Rf2 {[%emt 0:02:01]} 29. Bg2 {[%emt 0:02:41]} Nd7 {[%emt 0:02:52]} 30. Ra3 {[%emt 0:02:11]} a4 {[%emt 0:01:34]} 31. Rg1 {[%emt 0:00:58]} Nb6 {[%emt 0:02:06]} 32. Rd3 {[%emt 0:03:55]} Bc4 {[%emt 0:00:23]} 33. Rc3 {[%emt 0:03:29]} Bxa2 {[%emt 0:01:46]} 34. b3 {[%emt 0:01:41]} b4 {[%emt 0:00:29]} 35. Rd3 {[%emt 0:01:01]} c5 {[%emt 0:00:53]} 36. Rgd1 {[%emt 0:01:41]} axb3 {[%emt 0:00:22]} 37. cxb3 {[%emt 0:00:09]} c4 {[%emt 0:00:09]} 38. bxc4 {[%emt 0:00:41]} Nxc4 {[%emt 0:00:15]} 39. Nd5+ {[%emt 0:01:41]} Kf8 {[%emt 0:00:19]} 0-1

[Event "Cracovia Festival-A 2023"]
[Site "Krakow"]
[Date "2024.01.02"]
[Round "6.45"]
[White "Hnatyshyn, Anastasiia"]
[Black "Biesiadecki, Adam"]
[Result "1-0"]
[ECO "C54"]
[WhiteElo "2152"]
[BlackElo "2102"]
[Annotator "RC"]
[PlyCount "111"]
[EventDate "2023.12.24"]
[EventType "swiss"]
[EventCountry "POL"]
[SourceTitle "playchess.com"]
[Source "ChessBase"]
[SourceQuality "1"]
[TimeControl "40/5400+30:1800+30"]

1. e4 {[%emt 0:00:39]} e5 {[%emt 0:07:15]} 2. Nf3 {[%emt 0:00:26]} Nc6 {[%emt 0:00:07]} 3. Bc4 {[%emt 0:00:09]} Bc5 {[%emt 0:00:11]} 4. c3 {[%emt 0:00:08]} Nf6 {[%emt 0:00:09]} 5. d4 {[%emt 0:00:15]} exd4 {[%emt 0:00:10]} 6. e5 {[%emt 0:00:04]} d5 {[%emt 0:00:28]} 7. Bb5 {[%emt 0:00:05]} Ne4 {[%emt 0:00:23]} 8. cxd4 {[%emt 0:00:06]} Bb4+ {[%emt 0:00:42]} 9. Bd2 {[%emt 0:01:26]} Nxd2 {[%emt 0:00:27]} 10. Nbxd2 {[%emt 0:00:06]} O-O {[%emt 0:06:50]} 11. h3 {[%emt 0:07:03]} Ne7 {[%emt 0:08:39]} 12. a3 {[%emt 0:02:56]} Ba5 {[%emt 0:02:42]} 13. O-O {[%emt 0:00:45]} Bb6 {[%emt 0:09:48]} 14. Bd3 {[%emt 0:04:10]} Bf5 {[%emt 0:03:49]} 15. Nb3 {[%emt 0:03:54]} f6 {[%emt 0:16:41]} 16. Rc1 {[%emt 0:12:32]} Bxd3 {[%emt 0:03:35]} 17. Qxd3 {[%emt 0:00:05]} Ng6 {[%emt 0:00:14]} 18. g3 {[%emt 0:15:25]} fxe5 {[%emt 0:01:51]} 19. Nxe5 {[%emt 0:00:04]} Nxe5 {[%emt 0:00:22]} 20. dxe5 {[%emt 0:00:05]} c6 {[%emt 0:01:50]} 21. Kg2 {[%emt 0:00:40]} Qe7 {[%emt 0:02:12]} 22. f4 {[%emt 0:00:37]} g5 {[%emt 0:00:54]} 23. Rce1 {[%emt 0:03:31]} gxf4 {[%emt 0:00:23]} 24. gxf4 {[%emt 0:00:04]} Kh8 {[%emt 0:00:40]} 25. Kh1 {[%emt 0:16:18]} Qh4 {[%emt 0:03:23]} 26. Qf3 {[%emt 0:02:25]} Rg8 {[%emt 0:00:11]} 27. Kh2 {[%emt 0:00:57]} Rg7 {[%emt 0:03:11]} 28. Nc1 {[%emt 0:00:55]} Rag8 {[%emt 0:06:42]} 29. Ne2 {[%emt 0:00:11]} d4 {[%emt 0:03:58]} 30. Rd1 {[%emt 0:02:26]} c5 {[%emt 0:02:28]} 31. b3 {[%emt 0:06:38]} a5 {[%emt 0:02:03]} 32. a4 {[%emt 0:01:00]} Bc7 {[%emt 0:01:36]} 33. Rd3 {[%emt 0:02:40]} Rf8 {[%emt 0:02:32]} 34. Qe4 {[%emt 0:02:32]} Qe7 {[%emt 0:02:21]} 35. Rg3 {[%emt 0:05:12]} b6 {[%emt 0:04:58]} 36. Rfg1 {[%emt 0:04:55]} Rxg3 {[%emt 0:00:52]} 37. Rxg3 {[%emt 0:00:19]} Bd8 {[%emt 0:01:52]} 38. Kg2 {[%emt 0:02:15]} Rg8 {[%emt 0:00:56]} 39. Rxg8+ {[%emt 0:01:50]} Kxg8 {[%emt 0:00:01]} 40. Qd5+ {[%emt 0:00:00]} Kf8 {[%emt 0:00:00]} 41. Ng3 {[%emt 0:02:37]} Qe8 {[%emt 0:03:21]} 42. Qd6+ {[%emt 0:12:16]} Qe7 {[%emt 0:01:40]} 43. Qxe7+ {[%emt 0:03:43]} Kxe7 44. Kf3 {[%emt 0:00:03]} Kd7 {[%emt 0:09:30]} 45. Ke4 {[%emt 0:00:51]} Kc6 {[%emt 0:00:12]} 46. f5 {[%emt 0:01:15]} b5 {[%emt 0:00:13]} 47. axb5+ {[%emt 0:02:42]} Kxb5 {[%emt 0:00:02]} 48. f6 {[%emt 0:00:25]} c4 {[%emt 0:00:29]} 49. bxc4+ {[%emt 0:01:51]} Kxc4 {[%emt 0:00:01]} 50. Nf5 {[%emt 0:01:41]} d3 {[%emt 0:00:14]} 51. f7 {[%emt 0:00:03]} Be7 {[%emt 0:00:22]} 52. Nxe7 {[%emt 0:00:11]} d2 {[%emt 0:00:05]} 53. f8=Q d1=Q {[%emt 0:00:09]} 54. Qf7+ {[%emt 0:01:46]} Kb4 {[%emt 0:00:19]} 55. Nd5+ {[%emt 0:00:13]} Ka3 {[%emt 0:00:22]} 56. Qf3+ {[%emt 0:00:20]} 1-0

[Event "Cracovia Festival-A 2023"]
[Site "Krakow"]
[Date "2024.01.02"]
[Round "6.46"]
[White "Jedraszek, Pawel"]
[Black "Kovalevsky, Stanislav"]
[Result "1-0"]
[ECO "B15"]
[WhiteElo "2124"]
[BlackElo "2163"]
[Annotator "RC"]
[PlyCount "97"]
[EventDate "2023.12.24"]
[EventType "swiss"]
[EventCountry "POL"]
[SourceTitle "playchess.com"]
[Source "ChessBase"]
[SourceQuality "1"]
[TimeControl "40/5400+30:1800+30"]

1. e4 {[%emt 0:00:03]} c6 {[%emt 0:00:03]} 2. d4 {[%emt 0:00:07]} d5 {[%emt 0:00:02]} 3. Nc3 {[%emt 0:00:11]} dxe4 {[%emt 0:00:05]} 4. Nxe4 {[%emt 0:00:06]} Nf6 {[%emt 0:00:04]} 5. Nxf6+ {[%emt 0:00:27]} exf6 {[%emt 0:00:04]} 6. c3 {[%emt 0:00:26]} Bd6 {[%emt 0:00:06]} 7. Bd3 {[%emt 0:00:28]} O-O {[%emt 0:00:05]} 8. Qc2 {[%emt 0:00:23]} Re8+ {[%emt 0:00:05]} 9. Ne2 {[%emt 0:00:14]} h5 {[%emt 0:00:03]} 10. Be3 {[%emt 0:00:45]} Nd7 {[%emt 0:00:14]} 11. O-O-O {[%emt 0:00:29]} Nf8 {[%emt 0:00:04]} 12. c4 {[%emt 0:01:27]} Be6 {[%emt 0:03:10]} 13. Kb1 {[%emt 0:00:20]} Rc8 {[%emt 0:00:39]} 14. a3 {[%emt 0:00:22]} b5 {[%emt 0:03:35]} 15. c5 {[%emt 0:00:21]} Bc7 {[%emt 0:02:22]} 16. Nc3 {[%emt 0:01:11]} Ng6 {[%emt 0:26:54]} 17. d5 {[%emt 0:12:50]} cxd5 {[%emt 0:05:47]} 18. Bxg6 {[%emt 0:08:08]} fxg6 {[%emt 0:00:18]} 19. Qxg6 {[%emt 0:00:10]} Be5 {[%emt 0:15:31]} 20. Qd3 {[%emt 0:02:57]} d4 {[%emt 0:08:50]} 21. Bxd4 {[%emt 0:02:01]} Qxd4 {[%emt 0:00:42]} 22. Qxd4 {[%emt 0:00:06]} Bxd4 {[%emt 0:00:03]} 23. Rxd4 {[%emt 0:00:07]} Rxc5 {[%emt 0:00:19]} 24. Kc1 {[%emt 0:04:54]} a5 {[%emt 0:03:13]} 25. Re1 {[%emt 0:05:52]} Kf7 {[%emt 0:03:21]} 26. Kd2 {[%emt 0:01:40]} Rb8 {[%emt 0:08:10]} 27. Ne4 {[%emt 0:08:11]} Rc6 {[%emt 0:02:05]} 28. f3 {[%emt 0:22:25]} Bb3 {[%emt 0:03:03]} 29. Ke3 {[%emt 0:06:38]} Rc2 {[%emt 0:02:26]} 30. Re2 {[%emt 0:02:16]} Rxe2+ {[%emt 0:01:08]} 31. Kxe2 {[%emt 0:00:48]} Kg6 {[%emt 0:01:37]} 32. Ke3 {[%emt 0:02:06]} Rc8 {[%emt 0:01:12]} 33. Rd3 {[%emt 0:01:14]} Bg8 {[%emt 0:04:42]} 34. Rc3 {[%emt 0:03:46]} Rxc3+ {[%emt 0:02:42]} 35. bxc3 {[%emt 0:01:09]} Bc4 {[%emt 0:01:34]} 36. Nd2 {[%emt 0:01:16]} Bf7 {[%emt 0:00:10]} 37. Kf4 {[%emt 0:02:45]} Bd5 {[%emt 0:01:17]} 38. g3 {[%emt 0:02:08]} Kf7 {[%emt 0:00:16]} 39. Ke3 {[%emt 0:01:40]} Ke6 {[%emt 0:01:50]} 40. Kd4 {[%emt 0:00:00]} Bc6 {[%emt 0:00:00]} 41. Kc5 {[%emt 0:01:48]} Be8 {[%emt 0:10:17]} 42. Nb3 {[%emt 0:05:04]} b4 {[%emt 0:04:38]} 43. cxb4 {[%emt 0:00:31]} axb4 {[%emt 0:00:03]} 44. axb4 {[%emt 0:00:16]} Ke5 {[%emt 0:05:01]} 45. Na5 {[%emt 0:02:23]} Ba4 {[%emt 0:00:31]} 46. Nc6+ {[%emt 0:01:30]} Kf5 {[%emt 0:00:48]} 47. Kd6 {[%emt 0:02:46]} h4 {[%emt 0:02:29]} 48. Nd4+ {[%emt 0:00:46]} Kg5 {[%emt 0:00:05]} 49. b5 {[%emt 0:00:34]} 1-0

[Event "Cracovia Festival-A 2023"]
[Site "Krakow"]
[Date "2024.01.02"]
[Round "6.47"]
[White "Bilczewski, Kacper"]
[Black "Gbiorczyk, Mikolaj"]
[Result "1-0"]
[ECO "C50"]
[WhiteElo "2125"]
[BlackElo "2137"]
[Annotator "RC"]
[PlyCount "151"]
[EventDate "2023.12.24"]
[EventType "swiss"]
[EventCountry "POL"]
[SourceTitle "playchess.com"]
[Source "ChessBase"]
[SourceQuality "1"]
[TimeControl "40/5400+30:1800+30"]

1. e4 {[%emt 0:01:26]} e5 {[%emt 0:00:18]} 2. Nf3 {[%emt 0:00:27]} Nc6 {[%emt 0:00:05]} 3. Bc4 {[%emt 0:00:15]} Nf6 {[%emt 0:00:14]} 4. d3 {[%emt 0:00:03]} Bc5 {[%emt 0:00:17]} 5. c3 {[%emt 0:00:06]} d6 {[%emt 0:00:19]} 6. O-O {[%emt 0:00:15]} O-O {[%emt 0:00:05]} 7. Nbd2 {[%emt 0:01:05]} a6 {[%emt 0:00:31]} 8. Bb3 {[%emt 0:04:30]} Ba7 {[%emt 0:00:31]} 9. Nc4 {[%emt 0:02:19]} Ne7 {[%emt 0:00:48]} 10. Ne3 {[%emt 0:01:12]} Ng6 {[%emt 0:00:57]} 11. Qc2 {[%emt 0:10:00]} Be6 {[%emt 0:05:56]} 12. g3 {[%emt 0:11:07]} Qd7 {[%emt 0:06:41]} 13. Bd2 {[%emt 0:08:21]} h6 {[%emt 0:09:38]} 14. Rad1 {[%emt 0:07:52]} c6 {[%emt 0:05:37]} 15. Bc1 {[%emt 0:02:24]} d5 {[%emt 0:06:55]} 16. exd5 {[%emt 0:00:35]} cxd5 {[%emt 0:07:41]} 17. d4 {[%emt 0:00:09]} e4 {[%emt 0:02:23]} 18. Ne5 {[%emt 0:00:10]} Qd6 {[%emt 0:01:11]} 19. f4 {[%emt 0:01:11]} exf3 {[%emt 0:14:15]} 20. Nxg6 {[%emt 0:04:28]} fxg6 {[%emt 0:02:36]} 21. Rxf3 {[%emt 0:00:20]} Ne4 {[%emt 0:05:03]} 22. Rdf1 {[%emt 0:03:01]} Rxf3 {[%emt 0:03:58]} 23. Rxf3 {[%emt 0:00:07]} Re8 {[%emt 0:01:22]} 24. Rf1 {[%emt 0:12:51]} Kh7 {[%emt 0:01:45]} 25. Qg2 {[%emt 0:04:49]} Ng5 {[%emt 0:06:57]} 26. Rd1 {[%emt 0:03:27]} Rf8 {[%emt 0:00:36]} 27. Kh1 {[%emt 0:03:04]} Ne4 {[%emt 0:03:25]} 28. Rf1 {[%emt 0:00:38]} Rxf1+ {[%emt 0:01:11]} 29. Qxf1 {[%emt 0:01:59]} Bb8 {[%emt 0:01:23]} 30. Ng2 {[%emt 0:04:13]} g5 {[%emt 0:06:50]} 31. Bc2 {[%emt 0:00:15]} Kg8 {[%emt 0:00:32]} 32. Kg1 {[%emt 0:04:59]} b5 {[%emt 0:02:26]} 33. a3 {[%emt 0:00:29]} Qc6 {[%emt 0:01:03]} 34. Bd3 {[%emt 0:04:00]} Bd7 {[%emt 0:01:59]} 35. Ne3 {[%emt 0:00:25]} a5 {[%emt 0:00:48]} 36. Qf3 {[%emt 0:02:43]} Nf6 {[%emt 0:00:40]} 37. Nf5 {[%emt 0:00:23]} Bxf5 {[%emt 0:00:33]} 38. Qxf5 {[%emt 0:00:17]} b4 {[%emt 0:00:29]} 39. axb4 {[%emt 0:00:05]} axb4 {[%emt 0:00:01]} 40. Bd2 {[%emt 0:00:00]} Ba7 {[%emt 0:00:00]} 41. Qe5 {[%emt 0:04:38]} Qe8 {[%emt 0:11:49]} 42. Qxe8+ {[%emt 0:03:24]} Nxe8 {[%emt 0:00:02]} 43. Bg6 {[%emt 0:00:41]} Nd6 {[%emt 0:00:54]} 44. Kf2 {[%emt 0:00:53]} Nc4 {[%emt 0:01:48]} 45. Bc1 {[%emt 0:00:34]} Kf8 {[%emt 0:03:15]} 46. Ke2 {[%emt 0:00:31]} Ke7 {[%emt 0:01:03]} 47. Kd3 {[%emt 0:01:14]} b3 {[%emt 0:01:28]} 48. Bh5 {[%emt 0:01:25]} Bb8 {[%emt 0:01:03]} 49. Bd1 {[%emt 0:00:14]} Na5 {[%emt 0:00:02]} 50. Ke3 {[%emt 0:01:21]} Bd6 {[%emt 0:01:46]} 51. Kf3 {[%emt 0:00:32]} g6 {[%emt 0:00:49]} 52. Be2 {[%emt 0:00:28]} Kf6 {[%emt 0:03:16]} 53. h3 {[%emt 0:01:07]} h5 {[%emt 0:02:22]} 54. g4 {[%emt 0:01:36]} h4 {[%emt 0:00:21]} 55. Bb5 {[%emt 0:00:39]} Bg3 {[%emt 0:04:12]} 56. Bd2 {[%emt 0:00:47]} Bd6 {[%emt 0:00:31]} 57. c4 {[%emt 0:01:03]} Nxc4 {[%emt 0:00:52]} 58. Bxc4 {[%emt 0:00:05]} dxc4 {[%emt 0:00:01]} 59. Ke4 {[%emt 0:00:57]} Bf4 {[%emt 0:01:08]} 60. Bb4 {[%emt 0:01:22]} Bc1 {[%emt 0:01:14]} 61. Bc3 {[%emt 0:00:25]} Ke6 {[%emt 0:00:23]} 62. d5+ {[%emt 0:00:11]} Kd6 {[%emt 0:00:04]} 63. Kd4 {[%emt 0:00:15]} Bf4 {[%emt 0:00:37]} 64. Kxc4 {[%emt 0:00:08]} Be3 {[%emt 0:00:37]} 65. Bg7 {[%emt 0:02:54]} Bc1 {[%emt 0:01:18]} 66. Bf8+ {[%emt 0:00:45]} Ke5 {[%emt 0:00:19]} 67. d6 {[%emt 0:00:15]} Ke6 {[%emt 0:02:56]} 68. Kxb3 {[%emt 0:00:07]} Kd7 {[%emt 0:00:29]} 69. Be7 {[%emt 0:00:28]} Kc6 {[%emt 0:00:13]} 70. Kc3 {[%emt 0:00:13]} Be3 {[%emt 0:00:20]} 71. b3 {[%emt 0:00:07]} Bc5 {[%emt 0:00:55]} 72. Kc4 {[%emt 0:00:11]} Be3 {[%emt 0:00:31]} 73. b4 {[%emt 0:00:08]} Bf2 {[%emt 0:00:18]} 74. b5+ {[%emt 0:00:06]} Kd7 {[%emt 0:00:03]} 75. Kd5 {[%emt 0:00:05]} Be3 {[%emt 0:00:16]} 76. Ke5 {[%emt 0:00:20]} 1-0

[Event "Cracovia Festival-A 2023"]
[Site "Krakow"]
[Date "2024.01.02"]
[Round "6.49"]
[White "Krzyzanowski, Patryk"]
[Black "Manko, Mariia"]
[Result "0-1"]
[ECO "A57"]
[WhiteElo "2102"]
[BlackElo "2128"]
[Annotator "RC"]
[PlyCount "74"]
[EventDate "2023.12.24"]
[EventType "swiss"]
[EventCountry "POL"]
[SourceTitle "playchess.com"]
[Source "ChessBase"]
[SourceQuality "1"]
[TimeControl "40/5400+30:1800+30"]

1. d4 {[%emt 0:00:05]} Nf6 {[%emt 0:02:16]} 2. c4 {[%emt 0:00:17]} c5 {[%emt 0:00:06]} 3. d5 {[%emt 0:00:15]} b5 {[%emt 0:00:05]} 4. cxb5 {[%emt 0:00:10]} a6 {[%emt 0:00:04]} 5. b6 {[%emt 0:00:16]} e6 {[%emt 0:00:09]} 6. Nc3 {[%emt 0:00:16]} Nxd5 {[%emt 0:00:08]} 7. Nxd5 {[%emt 0:00:31]} exd5 {[%emt 0:00:06]} 8. Qxd5 {[%emt 0:01:13]} Nc6 {[%emt 0:00:06]} 9. e4 {[%emt 0:00:44]} Be7 {[%emt 0:00:08]} 10. Bc4 {[%emt 0:00:39]} O-O {[%emt 0:00:08]} 11. Nf3 {[%emt 0:00:17]} Rb8 {[%emt 0:01:09]} 12. Bd2 {[%emt 0:03:46]} Rxb6 {[%emt 0:06:15]} 13. Bc3 {[%emt 0:02:05]} d6 {[%emt 0:01:43]} 14. Qh5 {[%emt 0:03:03]} Be6 {[%emt 0:21:40]} 15. Bxe6 {[%emt 0:01:26]} fxe6 {[%emt 0:00:05]} 16. Qg4 {[%emt 0:01:56]} e5 {[%emt 0:01:13]} 17. Qe6+ {[%emt 0:05:33]} Kh8 {[%emt 0:00:13]} 18. Rd1 {[%emt 0:00:49]} Qe8 {[%emt 0:04:59]} 19. Rxd6 {[%emt 0:06:54]} Nd4 {[%emt 0:10:07]} 20. Rxb6 {[%emt 0:00:13]} Nxe6 {[%emt 0:00:11]} 21. Rxe6 {[%emt 0:00:04]} Qd7 {[%emt 0:05:34]} 22. Rxe5 {[%emt 0:18:10]} Bf6 {[%emt 0:02:24]} 23. O-O {[%emt 0:03:02]} Bxe5 {[%emt 0:01:17]} 24. Nxe5 {[%emt 0:00:07]} Qa4 {[%emt 0:01:10]} 25. Re1 {[%emt 0:03:28]} Qxa2 {[%emt 0:02:43]} 26. Nd7 {[%emt 0:05:29]} Re8 {[%emt 0:10:29]} 27. Nxc5 {[%emt 0:15:46]} Qc4 {[%emt 0:08:19]} 28. Rc1 {[%emt 0:00:24]} Kg8 {[%emt 0:01:40]} 29. Bd2 {[%emt 0:12:25]} Qd4 {[%emt 0:00:38]} 30. Be3 {[%emt 0:00:39]} Qxb2 {[%emt 0:00:14]} 31. f4 {[%emt 0:08:30]} a5 {[%emt 0:04:07]} 32. e5 {[%emt 0:00:13]} Qe2 {[%emt 0:00:35]} 33. Bf2 {[%emt 0:04:07]} Rd8 {[%emt 0:04:17]} 34. g3 {[%emt 0:02:42]} Rd2 {[%emt 0:00:23]} 35. Rf1 {[%emt 0:00:35]} Qc4 {[%emt 0:06:57]} 36. Be3 {[%emt 0:01:16]} Re2 {[%emt 0:00:55]} 37. Rc1 {[%emt 0:00:28]} Qd5 {[%emt 0:00:12]} 0-1

[Event "Cracovia Festival-A 2023"]
[Site "Krakow"]
[Date "2024.01.02"]
[Round "7.1"]
[White "Bogdanov, Egor"]
[Black "Gumularz, Szymon"]
[Result "1/2-1/2"]
[ECO "B22"]
[WhiteElo "2394"]
[BlackElo "2576"]
[Annotator "TA"]
[PlyCount "30"]
[EventDate "2023.12.24"]
[EventType "swiss"]
[EventCountry "POL"]
[SourceTitle "playchess.com"]
[Source "ChessBase"]
[SourceQuality "1"]
[TimeControl "40/5400+30:1800+30"]

{[%evp 22,30,0,2,9,-15,-27,-21,-2,0,0]} 1. e4 {[%emt 0:00:02]} c5 {[%emt 0:01:35]} 2. c3 {[%emt 0:00:31]} Nf6 {[%emt 0:00:06]} 3. e5 {[%emt 0:00:04]} Nd5 {[%emt 0:00:06]} 4. d4 {[%emt 0:00:04]} cxd4 {[%emt 0:00:08]} 5. Nf3 {[%emt 0:00:05]} Nc6 {[%emt 0:00:40]} 6. Bc4 {[%emt 0:01:21]} Nb6 {[%emt 0:00:06]} 7. Bb3 {[%emt 0:00:05]} d5 {[%emt 0:00:06]} 8. exd6 {[%emt 0:00:06]} Qxd6 {[%emt 0:00:05]} 9. Na3 {[%emt 0:02:51]} a6 {[%emt 0:19:57]} 10. O-O {[%emt 0:01:01]} Bf5 {[%emt 0:08:27]} 11. Nxd4 {[%emt 0:09:01]} Nxd4 {[%emt 0:00:16]} 12. cxd4 {[%emt 0:02:31] Black must now prevent Qf3.} e6 {[%emt 0:00:07] [#] B22: Sicilian: 2 c3.} 13. Nc4 $146 {[%emt 0:04:26]} ({Predecessor:} 13. Qf3 Qc6 14. Qxc6+ bxc6 15. Bd2 Bd6 16. Rac1 Kd7 17. Rfe1 a5 18. Nc4 Nxc4 19. Rxc4 Rhb8 20. Ba4 {1-0 Mamedov,R (2636)-Yilmaz,M (2639) Julius Baer Play In rapid 2023 (2.15)}) 13... Nxc4 {[%emt 0:00:17]} 14. Bxc4 {[%emt 0:00:02]} Rc8 {[%emt 0:01:00]} 15. Bb3 {[%emt 0:01:42]} Be7 {[%emt 0:04:39] Not much happened in this game.   Weighted Error Value: White=0.11 (very precise) /Black=0.08 (flawless)} 1/2-1/2

[Event "Cracovia Festival-A 2023"]
[Site "Krakow"]
[Date "2024.01.02"]
[Round "7.2"]
[White "Puranik, Abhimanyu"]
[Black "Podolskyi, Mykhailo"]
[Result "1/2-1/2"]
[ECO "B43"]
[WhiteElo "2627"]
[BlackElo "2177"]
[Annotator "TA"]
[PlyCount "45"]
[EventDate "2023.12.24"]
[EventType "swiss"]
[EventCountry "POL"]
[SourceTitle "playchess.com"]
[Source "ChessBase"]
[SourceQuality "1"]
[TimeControl "40/5400+30:1800+30"]

{[%evp 15,45,16,32,39,31,26,25,26,32,26,11,0,6,-4,-10,-7,20,0,25,0,13,-29,-29,-27,-19,-36,-35,-31,-37,-29,-27,-20]} 1. e4 {[%emt 0:00:03]} c5 {[%emt 0:04:35]} 2. Nf3 {[%emt 0:00:09]} e6 {[%emt 0:00:13]} 3. Nc3 {[%emt 0:00:08]} a6 {[%emt 0:02:40]} 4. d4 {[%emt 0:00:19]} cxd4 {[%emt 0:00:20]} 5. Nxd4 {[%emt 0:00:06]} b5 {[%emt 0:00:30]} 6. Bd3 {[%emt 0:00:28]} Bb7 {[%emt 0:01:19]} 7. O-O {[%emt 0:00:41]} Nc6 {[%emt 0:01:37]} 8. Nxc6 {[%emt 0:00:30]} Bxc6 {[%emt 0:00:15]} 9. Re1 {[%emt 0:00:39] B43: Sicilian: Kan Variation: 5 Nc3.} Qb8 {[%emt 0:00:53]} 10. a4 {[%emt 0:09:40]} (10. Nd5 {is more complex.} Bd6 11. Qh5 Kf8 12. e5) 10... b4 {[%emt 0:07:46] [#] 10...bxa4 might become the main line.} 11. Nd5 {[%emt 0:00:07] White has an edge.} Bd6 {[%emt 0:00:31] [#] Repels Bf4} 12. h3 $1 {[%emt 0:09:13][%cal Oc1e3]} Nf6 {[%emt 0:05:57]} (12... Ne7 13. Qg4) 13. Nxf6+ {[%emt 0:14:32]} gxf6 {[%emt 0:01:12] [#]} 14. Bc4 $146 {[%emt 0:07:14][%cal Oc4d5]} ({Predecessor:} 14. b3 Be5 15. Rb1 Rg8 16. Qh5 f5 17. Bg5 Bd4 18. Qh4 h6 19. Bf4 Be5 20. Bxh6 {½-½ Zakharov,O (2253)-Van Schyndel,A (2256) W-ch WS/M/337 email 2011}) 14... Rg8 {[%emt 0:17:18]} 15. Qd3 {[%emt 0:02:04]} Ke7 {[%emt 0:03:14] [#]} (15... Be5 {simplifies} 16. f3 Qd6 17. Qxd6 Bxd6 18. Kf1 a5) 16. Bd5 $1 {[%emt 0:00:50]} Qc7 {[%emt 0:04:04]} (16... exd5 $2 17. exd5+ Be5 18. dxc6 $18) 17. Bxc6 {[%emt 0:09:18]} (17. Bd2 $5 {[%cal Rd5c6]}) 17... Qxc6 {[%emt 0:00:38]} 18. Be3 {[%emt 0:05:08] [#]} f5 $1 {[%emt 0:17:25]} 19. Bd2 {[%emt 0:00:02]} Rac8 {[%emt 0:03:59]} 20. Rad1 {[%emt 0:01:19]} fxe4 {[%emt 0:03:39]} 21. Qxe4 {[%emt 0:00:42]} Qxe4 {[%emt 0:01:07]} ({Don't do} 21... Qxa4 22. Qh4+ (22. Qxh7 Qc6 $11) 22... Ke8 23. Qxh7 $14) 22. Rxe4 {[%emt 0:00:04]} Rxc2 {[%emt 0:01:01] Strongly threatening ...a5.} 23. Bxb4 {[%emt 0:00:55] Weighted Error Value: White=0.12 (very precise) /Black=0.05 (flawless)} 1/2-1/2